bitfinex/quotes_BTCUSD_20250825
["timestamp","ask_amount","ask_price","bid_price","bid_amount"]
[1756106915010,0.511048,112140.0,112130.0,0.10516]
[1756106915449,1.2449007,112140.0,112130.0,0.10516]
[1756106916614,1.0917407,112140.0,112130.0,0.10516]
[1756106916835,0.511048,112140.0,112130.0,0.10516]
[1756106917053,1.2449007,112140.0,112130.0,0.10516]
[1756106917269,0.511048,112140.0,112130.0,0.10516]
[1756106917502,1.2449007,112140.0,112130.0,0.10516]
[1756106917929,1.42324919,112140.0,112130.0,0.10516]
[1756106918137,0.511048,112140.0,112130.0,0.10516]
[1756106918342,1.2449007,112140.0,112130.0,0.10516]
[1756106918555,0.511048,112140.0,112130.0,0.10516]
[1756106918981,1.2449007,112140.0,112130.0,0.10516]
[1756106919637,1.0917407,112140.0,112130.0,0.10516]
[1756106919852,1.2449007,112140.0,112130.0,0.10516]
[1756106920309,0.511048,112140.0,112130.0,0.10516]
[1756106920525,1.2449007,112140.0,112130.0,0.10516]
[1756106924314,0.511048,112140.0,112130.0,0.10516]
[1756106924539,1.2449007,112140.0,112130.0,0.10516]
[1756106925442,0.511048,112140.0,112130.0,0.10516]
[1756106925657,1.2449007,112140.0,112130.0,0.10516]
[1756106927417,1.29316297,112140.0,112130.0,0.10516]
[1756106928519,1.2449007,112140.0,112130.0,0.10516]
[1756106930646,1.2449007,112140.0,112130.0,0.10005]
[1756106930862,1.42324919,112140.0,112130.0,0.10005]
[1756106932167,1.2449007,112140.0,112130.0,0.1032]
[1756106932562,1.42324919,112140.0,112130.0,0.10005]
[1756106932929,1.42324919,112140.0,112130.0,0.1032]
[1756106933514,0.511048,112140.0,112130.0,0.10521]
[1756106933718,1.2449007,112140.0,112130.0,0.10521]
[1756106941127,1.42324919,112140.0,112130.0,0.10005]
[1756106941315,1.48652841,112140.0,112130.0,0.10005]
[1756106942247,1.48652841,112140.0,112130.0,0.00305]
[1756106943221,1.42324919,112140.0,112130.0,0.00305]
[1756106945685,1.27008919,112140.0,112130.0,0.00305]
[1756106945925,1.42320919,112140.0,112130.0,0.00305]
[1756106946137,1.43155658,112140.0,112130.0,0.00305]
[1756106946618,1.27843658,112140.0,112130.0,0.00305]
[1756106946852,1.47084533,112140.0,112130.0,0.00305]
[1756106947947,1.55771498,112140.0,112130.0,0.00305]
[1756106949345,1.47084533,112140.0,112130.0,0.00305]
[1756106949803,1.47084533,112140.0,112130.0,0.00599]
[1756106952052,1.47084533,112140.0,112130.0,0.00305]
[1756106952498,1.47084533,112140.0,112130.0,0.00599]
[1756106952751,1.47084437,112140.0,112130.0,0.00599]
[1756106952979,1.55771402,112140.0,112130.0,0.00305]
[1756106953861,1.59185583,112140.0,112130.0,0.00305]
[1756106954836,1.50498618,112140.0,112130.0,0.00305]
[1756106955714,1.35186618,112140.0,112130.0,0.00305]
[1756106955938,1.50498618,112140.0,112130.0,0.00305]
[1756106957707,1.50498618,112140.0,112130.0,0.00599]
[1756106958141,1.50498618,112140.0,112130.0,0.00305]
[1756106958690,1.5387559,112140.0,112130.0,0.00305]
[1756106959135,1.53876177,112140.0,112130.0,0.00305]
[1756106959975,1.50499217,112140.0,112130.0,0.00805]
[1756106960406,1.35187217,112140.0,112130.0,0.00805]
[1756106960615,1.50499217,112140.0,112130.0,0.00805]
[1756106960755,1.50499217,112140.0,112130.0,0.00599]
[1756106960955,1.50499217,112140.0,112130.0,0.00805]
[1756106962042,1.50499217,112140.0,112130.0,0.00599]
[1756106962470,1.50499516,112140.0,112130.0,0.00805]
[1756106964427,1.59186481,112140.0,112130.0,0.00805]
[1756106964637,1.59186481,112140.0,112130.0,0.00599]
[1756106965284,2.20101295,112140.0,112130.0,0.00599]
[1756106965492,2.20101295,112140.0,112130.0,0.00805]
[1756106965688,2.20101514,112140.0,112130.0,0.00805]
[1756106966319,2.20101514,112140.0,112130.0,0.00599]
[1756106966728,2.20101514,112140.0,112130.0,0.00805]
[1756106967150,2.95940031,112140.0,112130.0,0.00305]
[1756106967348,2.98692939,112140.0,112130.0,0.00305]
[1756106967733,3.01242701,112140.0,112130.0,0.00305]
[1756106967947,3.00616529,112140.0,112130.0,0.00305]
[1756106968149,3.01242739,112140.0,112130.0,0.00105]
[1756106968358,3.01242739,112140.0,112130.0,5e-05]
[1756106969045,2.98489831,112140.0,112130.0,5e-05]
[1756106969494,2.15833261,112140.0,112130.0,5e-05]
[1756106969706,1.56749094,112140.0,112130.0,5e-05]
[1756106970351,1.56123378,112140.0,112130.0,5e-05]
[1756106970582,1.77563378,112140.0,112130.0,5e-05]
[1756106970798,1.63647083,112140.0,112130.0,5e-05]
[1756106971023,1.78955083,112140.0,112130.0,5e-05]
[1756106971251,1.77559378,112140.0,112130.0,5e-05]
[1756106971482,1.62251378,112140.0,112130.0,5e-05]
[1756106971733,1.77559378,112140.0,112130.0,5e-05]
[1756106971948,1.53564413,112140.0,112130.0,5e-05]
[1756106972175,1.6887046,112140.0,112130.0,5e-05]
[1756106972393,1.67977258,112140.0,112130.0,5e-05]
[1756106974576,1.69372949,112140.0,112130.0,5e-05]
[1756106976444,1.67449359,112140.0,112130.0,5e-05]
[1756106976642,1.76136324,112140.0,112130.0,5e-05]
[1756106978623,1.78057009,112140.0,112130.0,5e-05]
[1756106978834,2.37766892,112140.0,112130.0,5e-05]
[1756106979243,2.38392099,112140.0,112130.0,5e-05]
[1756106979417,2.38392074,112140.0,112130.0,5e-05]
[1756106980717,2.41169543,112140.0,112130.0,5e-05]
[1756106981130,2.39773852,112140.0,112130.0,5e-05]
[1756106981946,2.39771811,112140.0,112130.0,5e-05]
[1756106982581,2.39771644,112140.0,112130.0,5e-05]
[1756106982794,2.39871644,112140.0,112130.0,5e-05]
[1756106982996,2.39971644,112140.0,112130.0,5e-05]
[1756106983842,1.20551878,112140.0,112130.0,5e-05]
[1756106984046,2.39971644,112140.0,112130.0,5e-05]
[1756106984498,2.41267418,112140.0,112130.0,5e-05]
[1756106985145,2.41367418,112140.0,112130.0,5e-05]
[1756106985576,2.41467418,112140.0,112130.0,5e-05]
[1756106988308,2.391759,112140.0,112130.0,5e-05]
[1756106988515,2.41467006,112140.0,112130.0,5e-05]
[1756106990326,2.41767006,112140.0,112130.0,5e-05]
[1756106991477,3.23895907,112140.0,112130.0,5e-05]
[1756106991700,3.22229648,112140.0,112130.0,5e-05]
[1756106992002,3.23896214,112140.0,112130.0,5e-05]
[1756106994527,3.2630025,112140.0,112130.0,5e-05]
[1756106996538,3.24904476,112140.0,112130.0,5e-05]
[1756106998350,3.24905303,112140.0,112130.0,5e-05]
[1756107000249,3.09597303,112140.0,112130.0,5e-05]
[1756107000471,3.24901303,112140.0,112130.0,5e-05]
[1756107000682,0.51836439,112130.0,112120.0,0.00351]
[1756107000894,2.23927922,112130.0,112120.0,0.00365438]
[1756107001114,2.2247086,112130.0,112120.0,0.00365438]
[1756107001335,2.2247086,112130.0,112120.0,0.00059438]
[1756107001336,2.27132413,112130.0,112120.0,0.00059438]
[1756107001575,2.27132413,112130.0,112120.0,0.00365438]
[1756107001801,2.11828413,112130.0,112120.0,0.00569438]
[1756107002018,2.27132413,112130.0,112120.0,0.00569438]
[1756107003375,0.77462635,112130.0,112120.0,0.00569438]
[1756107003637,0.92818635,112130.0,112120.0,0.00569438]
[1756107003860,2.08992631,112130.0,112120.0,0.00569438]
[1756107004096,1.33122777,112130.0,112120.0,0.00569438]
[1756107004312,0.36316804,112130.0,112120.0,0.00569438]
[1756107004554,1.37499693,112130.0,112120.0,0.00569438]
[1756107004788,1.35579008,112130.0,112120.0,0.00569438]
[1756107004999,2.21882239,112130.0,112120.0,0.00569438]
[1756107005207,2.23805094,112130.0,112120.0,0.00569438]
[1756107005434,2.23805466,112130.0,112120.0,0.00569438]
[1756107006307,0.74079688,112130.0,112120.0,0.00569438]
[1756107006507,1.47939612,112130.0,112120.0,0.00569438]
[1756107006720,2.15122501,112130.0,112120.0,0.00569438]
[1756107006936,2.15122501,112130.0,112120.0,0.00365438]
[1756107007355,2.15122501,112130.0,112120.0,0.00569438]
[1756107007594,2.23809466,112130.0,112120.0,0.00569438]
[1756107008255,2.24435565,112130.0,112120.0,0.00569438]
[1756107008936,0.81398822,112130.0,112120.0,0.00569438]
[1756107009186,1.33201711,112130.0,112120.0,0.00569438]
[1756107009438,1.47955612,112130.0,112120.0,0.00569438]
[1756107009710,1.55441843,112130.0,112120.0,0.00569438]
[1756107010054,1.54815612,112130.0,112120.0,0.00569438]
[1756107010196,0.74445839,112130.0,112120.0,0.00569438]
[1756107010412,0.75280892,112130.0,112120.0,0.00569438]
[1756107010632,1.42463781,112130.0,112120.0,0.00569438]
[1756107010848,0.75280892,112130.0,112120.0,0.00569438]
[1756107011305,1.42463781,112130.0,112120.0,0.00569438]
[1756107011521,1.42463781,112130.0,112120.0,0.00669438]
[1756107011734,1.44688023,112130.0,112120.0,0.00769438]
[1756107012175,0.77505134,112130.0,112120.0,0.00769438]
[1756107012400,1.47524144,112130.0,112120.0,0.00769438]
[1756107012610,1.3328519,112130.0,112120.0,0.00769438]
[1756107012825,1.48909387,112130.0,112120.0,0.00769438]
[1756107013040,0.84408098,112130.0,112120.0,0.00769438]
[1756107013271,1.51586987,112130.0,112120.0,0.00769438]
[1756107013948,0.84404098,112130.0,112120.0,0.00769438]
[1756107014162,1.51586987,112130.0,112120.0,0.00769438]
[1756107014373,1.60273952,112130.0,112120.0,0.00769438]
[1756107014827,2.05113952,112130.0,112120.0,0.00769438]
[1756107015283,1.37931063,112130.0,112120.0,0.00769438]
[1756107015499,1.97636875,112130.0,112120.0,0.00769438]
[1756107015943,1.99381777,112130.0,112120.0,0.00769438]
[1756107016891,1.99381463,112130.0,112120.0,0.00769438]
[1756107017177,1.90694498,112130.0,112120.0,0.00769438]
[1756107017421,1.30988686,112130.0,112120.0,0.00769438]
[1756107017671,1.90694498,112130.0,112120.0,0.00769438]
[1756107019312,1.64869121,112130.0,112120.0,0.10469438]
[1756107019530,0.87610039,112130.0,112120.0,0.10469438]
[1756107019759,1.21610039,112130.0,112120.0,0.10469438]
[1756107019983,1.037736,112130.0,112120.0,0.10469438]
[1756107020206,0.095416,112130.0,112120.0,0.10469438]
[1756107020425,0.249336,112130.0,112120.0,0.10692413]
[1756107021334,0.249336,112130.0,112120.0,0.10469438]
[1756107022041,0.249336,112130.0,112120.0,0.10269438]
[1756107022277,0.249336,112130.0,112120.0,0.10569438]
[1756107022514,0.249336,112130.0,112120.0,0.10869438]
[1756107022983,0.095416,112130.0,112120.0,0.19557913]
[1756107023223,0.249256,112130.0,112120.0,0.19557913]
[1756107026992,0.095416,112130.0,112120.0,0.79263725]
[1756107027226,0.22252,112130.0,112120.0,0.19557913]
[1756107031565,0.81957812,112130.0,112120.0,0.19557913]
[1756107031995,0.22252,112130.0,112120.0,0.19557913]
[1756107032208,0.81957812,112130.0,112120.0,0.19557913]
[1756107032648,0.84638612,112130.0,112120.0,0.19557913]
[1756107034810,0.249328,112130.0,112120.0,0.19557913]
[1756107035018,0.84638612,112130.0,112120.0,0.19557913]
[1756107035228,0.249328,112130.0,112120.0,0.19557913]
[1756107035432,0.84638612,112130.0,112120.0,0.19557913]
[1756107036103,0.249328,112130.0,112120.0,0.19557913]
[1756107036322,0.84638612,112130.0,112120.0,0.19557913]
[1756107037734,0.249328,112130.0,112120.0,0.19557913]
[1756107037991,0.84638612,112130.0,112120.0,0.19557913]
[1756107038678,0.69246612,112130.0,112120.0,0.19557913]
[1756107038878,0.84610612,112130.0,112120.0,0.19557913]
[1756107039100,0.93297577,112130.0,112120.0,0.10359438]
[1756107039328,0.84610612,112130.0,112120.0,0.10359438]
[1756107039776,1.01555051,112130.0,112120.0,0.10667438]
[1756107039990,1.01555051,112130.0,112120.0,0.10359438]
[1756107040210,0.68354612,112130.0,112120.0,0.10359438]
[1756107040414,0.68354612,112130.0,112120.0,0.10667438]
[1756107040624,0.83710612,112130.0,112120.0,0.10883438]
[1756107041314,1.01547051,112130.0,112120.0,0.10883438]
[1756107041543,1.01547051,112130.0,112120.0,0.10667438]
[1756107041762,1.01547051,112130.0,112120.0,0.10359438]
[1756107042022,1.08371951,112130.0,112120.0,0.10359438]
[1756107042269,1.08371951,112130.0,112120.0,0.00659438]
[1756107042270,1.01547051,112130.0,112120.0,0.00659438]
[1756107042687,1.01555051,112130.0,112120.0,0.10359438]
[1756107043321,1.01555051,112130.0,112120.0,0.10059438]
[1756107043750,1.01555051,112130.0,112120.0,0.10159438]
[1756107044167,1.35555051,112130.0,112120.0,0.10059438]
[1756107044374,1.35555051,112130.0,112120.0,0.09759438]
[1756107044618,1.35555051,112130.0,112120.0,0.09859438]
[1756107044830,1.35555051,112130.0,112120.0,0.10059438]
[1756107046315,1.44242016,112130.0,112120.0,0.10059438]
[1756107046529,1.44230016,112130.0,112120.0,0.10059438]
[1756107048945,1.44230016,112130.0,112120.0,0.00359438]
[1756107049282,0.69172204,112130.0,112120.0,0.10059438]
[1756107049505,1.37202613,112130.0,112120.0,0.10367438]
[1756107050849,1.37202613,112130.0,112120.0,0.10059438]
[1756107051753,1.21862613,112130.0,112120.0,0.10059438]
[1756107051986,1.37218613,112130.0,112120.0,0.10059438]
[1756107052277,1.45905578,112130.0,112120.0,0.10059438]
[1756107052499,1.45905152,112130.0,112120.0,0.10059438]
[1756107054076,1.45905152,112130.0,112120.0,0.00359438]
[1756107054298,2.16880109,112130.0,112120.0,0.00359438]
[1756107054943,2.16880109,112130.0,112120.0,0.00159438]
[1756107055615,2.16880109,112130.0,112120.0,0.00059438]
[1756107055836,2.16880022,112130.0,112120.0,0.00059438]
[1756107057447,2.18275798,112130.0,112120.0,0.00059438]
[1756107058348,0.98844174,112130.0,112120.0,0.00059438]
[1756107058565,2.18251798,112130.0,112120.0,0.00059438]
[1756107058986,2.21358915,112130.0,112120.0,0.00059438]
[1756107059230,2.22193332,112130.0,112120.0,0.00059438]
[1756107060174,2.2219326,112130.0,112120.0,0.00059438]
[1756107060839,2.2218926,112130.0,112120.0,0.00059438]
[1756107061767,2.20793427,112130.0,112120.0,0.00059438]
[1756107062887,0.77366838,112130.0,112120.0,0.00367438]
[1756107063129,1.3707265,112130.0,112120.0,0.00583438]
[1756107063346,1.5240065,112130.0,112120.0,0.00583438]
[1756107063566,1.5240065,112130.0,112120.0,0.00059438]
[1756107063792,2.12106462,112130.0,112120.0,0.00059438]
[1756107064009,2.20793427,112130.0,112120.0,0.00059438]
[1756107064667,2.20793508,112130.0,112120.0,0.00059438]
[1756107064893,2.22189262,112130.0,112120.0,0.00059438]
[1756107065308,2.22189403,112130.0,112120.0,0.00059438]
[1756107065775,2.2219017,112130.0,112120.0,0.00059438]
[1756107068028,2.22191071,112130.0,112120.0,0.00059438]
[1756107068697,2.22191351,112130.0,112120.0,0.00059438]
[1756107069154,2.27583853,112130.0,112120.0,0.00059438]
[1756107072063,2.27655853,112130.0,112120.0,0.00059438]
[1756107074995,2.26260099,112130.0,112120.0,0.00059438]
[1756107075217,2.10860099,112130.0,112120.0,0.00059438]
[1756107075465,2.26252099,112130.0,112120.0,0.00059438]
[1756107075688,2.26352099,112130.0,112120.0,0.00059438]
[1756107076325,2.10960099,112130.0,112120.0,0.00059438]
[1756107076548,2.26344099,112130.0,112120.0,0.00059438]
[1756107076789,2.26444099,112130.0,112120.0,0.00059438]
[1756107077006,2.28856135,112130.0,112120.0,0.00059438]
[1756107077666,2.28857203,112130.0,112120.0,0.00059438]
[1756107078135,2.30253058,112130.0,112120.0,0.00059438]
[1756107078358,2.26310173,112130.0,112120.0,0.00059438]
[1756107079031,2.26306173,112130.0,112120.0,0.00059438]
[1756107079251,2.26311317,112130.0,112120.0,0.00059438]
[1756107080562,2.26311611,112130.0,112120.0,0.00059438]
[1756107082088,2.24915756,112130.0,112120.0,0.00059438]
[1756107084998,2.24911756,112130.0,112120.0,0.00059438]
[1756107085229,2.26307609,112130.0,112120.0,0.00059438]
[1756107085474,2.23467685,112130.0,112120.0,0.00558438]
[1756107085945,2.21795194,112130.0,112120.0,0.00558438]
[1756107086172,2.21795467,112130.0,112120.0,0.00059438]
[1756107086420,2.06411467,112130.0,112120.0,0.00059438]
[1756107086652,2.21795467,112130.0,112120.0,0.00059438]
[1756107087334,2.2116801,112130.0,112120.0,0.00059438]
[1756107087547,2.21796004,112130.0,112120.0,0.00059438]
[1756107089092,2.25912048,112130.0,112120.0,0.00059438]
[1756107090247,2.28751972,112130.0,112120.0,0.00059438]
[1756107093105,1.09320348,112130.0,112120.0,0.00059438]
[1756107093363,2.28731972,112130.0,112120.0,0.00059438]
[1756107094957,2.13367972,112130.0,112120.0,0.00059438]
[1756107095166,2.28727972,112130.0,112120.0,0.00059438]
[1756107096656,2.28727972,112130.0,112110.0,5e-05]
[1756107096657,0.53582932,112120.0,112110.0,5e-05]
[1756107096913,2.14363757,112120.0,112110.0,0.00019447]
[1756107097138,2.12899625,112120.0,112110.0,0.00019447]
[1756107097353,2.14722342,112120.0,112110.0,0.00019447]
[1756107097788,2.16218319,112120.0,112110.0,0.00019447]
[1756107098039,2.16318319,112120.0,112110.0,0.00019447]
[1756107098337,2.17992934,112120.0,112110.0,0.00019447]
[1756107098547,2.77698746,112120.0,112110.0,0.00019447]
[1756107098763,2.18000934,112120.0,112110.0,0.00019447]
[1756107098976,2.21187942,112120.0,112110.0,0.00019447]
[1756107099191,2.18000934,112120.0,112110.0,0.00019447]
[1756107099689,2.16234675,112120.0,112110.0,0.00019447]
[1756107101037,2.75940487,112120.0,112110.0,0.00019447]
[1756107101265,2.7454451,112120.0,112110.0,0.00019447]
[1756107101499,0.95427074,112120.0,112110.0,0.00019447]
[1756107101719,0.95427074,112120.0,112110.0,0.00518447]
[1756107101720,2.7454451,112120.0,112110.0,0.00518447]
[1756107101942,1.99478698,112120.0,112110.0,0.00518447]
[1756107102173,2.12050774,112120.0,112110.0,0.00518447]
[1756107102402,2.14890698,112120.0,112110.0,0.00019447]
[1756107102624,2.7459651,112120.0,112110.0,0.00019447]
[1756107102843,2.7449651,112120.0,112110.0,0.00019447]
[1756107103067,2.7459651,112120.0,112110.0,0.00019447]
[1756107103292,2.7449651,112120.0,112110.0,0.00019447]
[1756107103768,2.7459651,112120.0,112110.0,0.00019447]
[1756107103988,2.7462851,112120.0,112110.0,0.00019447]
[1756107104212,7.4674781,112120.0,112110.0,0.00019447]
[1756107104463,0.56424447,112110.0,112100.0,5e-05]
[1756107104685,6.86001127,112110.0,112100.0,0.00308798]
[1756107104909,2.13881827,112110.0,112100.0,0.00508798]
[1756107105360,2.13881827,112110.0,112100.0,9.798e-05]
[1756107106317,2.16650648,112110.0,112100.0,9.798e-05]
[1756107106772,2.14975769,112110.0,112100.0,9.798e-05]
[1756107106997,2.16649113,112110.0,112100.0,9.798e-05]
[1756107107222,0.53586115,112100.0,112090.0,0.00045]
[1756107107466,6.9010523,112100.0,112090.0,0.00045]
[1756107107673,6.95356275,112100.0,112090.0,0.00045]
[1756107107870,6.95713975,112100.0,112090.0,0.00045]
[1756107108081,6.97110212,112100.0,112090.0,0.00045]
[1756107108939,1.7299933,112090.0,112080.0,0.00344]
[1756107109164,7.04722821,112090.0,112080.0,0.00344]
[1756107109383,2.35443445,112090.0,112080.0,0.00544]
[1756107109815,2.35801145,112090.0,112080.0,0.00544]
[1756107110033,1.7125602,112080.0,112070.0,0.00045]
[1756107110252,2.00471921,112080.0,112070.0,0.00045]
[1756107110461,2.13923874,112080.0,112070.0,0.00045]
[1756107110682,2.14590304,112080.0,112070.0,0.00045]
[1756107110892,2.14908304,112080.0,112070.0,0.00045]
[1756107111112,2.14590304,112080.0,112070.0,0.00045]
[1756107111324,2.14908304,112080.0,112070.0,0.00045]
[1756107112167,1.14391725,112070.0,112060.0,0.00045]
[1756107112413,2.18738565,112070.0,112060.0,0.00045]
[1756107112839,2.21421965,112070.0,112060.0,0.00544]
[1756107113052,1.61716153,112070.0,112060.0,0.00045]
[1756107113275,1.60109089,112070.0,112060.0,0.00045]
[1756107113492,1.60109089,112070.0,112060.0,0.0005945]
[1756107113493,1.62031548,112070.0,112060.0,0.0005945]
[1756107113746,1.61713548,112070.0,112060.0,0.0005945]
[1756107113955,1.68936991,112070.0,112060.0,0.0055845]
[1756107114158,1.68936991,112070.0,112060.0,0.0025945]
[1756107114371,0.51847581,112060.0,112050.0,0.00105509]
[1756107114576,1.46398516,112060.0,112050.0,0.00314089]
[1756107115013,1.46398516,112060.0,112050.0,0.00613089]
[1756107115225,1.49082216,112060.0,112050.0,0.00613089]
[1756107115868,1.50057891,112060.0,112050.0,0.00613089]
[1756107116078,1.50057891,112060.0,112050.0,0.00713089]
[1756107116308,1.50057891,112060.0,112050.0,0.00813089]
[1756107116517,1.50051728,112060.0,112050.0,0.00813089]
[1756107116726,0.90345916,112060.0,112050.0,0.00813089]
[1756107116939,1.50051728,112060.0,112050.0,0.00813089]
[1756107117162,1.50051328,112060.0,112050.0,0.00813089]
[1756107119558,1.50051328,112060.0,112050.0,0.00514089]
[1756107119559,1.50265328,112060.0,112050.0,0.00514089]
[1756107119778,2.09969779,112060.0,112050.0,0.00514089]
[1756107120000,2.09969779,112060.0,112050.0,0.00314089]
[1756107120237,2.10287779,112060.0,112050.0,0.00314089]
[1756107120451,2.13127703,112060.0,112050.0,0.00314089]
[1756107120655,2.13127703,112060.0,112050.0,0.00114089]
[1756107120918,2.12235703,112060.0,112050.0,0.00114089]
[1756107121152,2.15268998,112060.0,112050.0,0.00114089]
[1756107121360,2.12235703,112060.0,112050.0,0.00114089]
[1756107121566,2.13980605,112060.0,112050.0,0.00114089]
[1756107121786,2.16730769,112060.0,112050.0,0.00114089]
[1756107122004,1.74100722,112050.0,112040.0,5e-05]
[1756107122231,2.12503216,112050.0,112040.0,5e-05]
[1756107122665,1.73007293,112040.0,112030.0,5e-05]
[1756107122872,2.22094245,112040.0,112030.0,0.00053081]
[1756107123136,2.25466169,112040.0,112030.0,0.00053081]
[1756107123355,2.28150369,112040.0,112030.0,0.00053081]
[1756107123582,2.20703334,112040.0,112030.0,0.00253081]
[1756107123821,2.36309334,112040.0,112030.0,0.00552081]
[1756107124079,2.3400141,112040.0,112030.0,0.00053081]
[1756107124299,2.3368341,112040.0,112030.0,0.00053081]
[1756107124530,2.37745664,112040.0,112030.0,0.00053081]
[1756107124760,2.39142576,112040.0,112030.0,0.00552081]
[1756107124990,2.39221719,112040.0,112030.0,0.00253081]
[1756107125236,2.40884445,112040.0,112030.0,0.00552081]
[1756107125679,2.40884239,112040.0,112030.0,0.00552081]
[1756107125902,2.4088418,112040.0,112030.0,0.00552081]
[1756107126140,2.4088418,112040.0,112030.0,0.01052081]
[1756107126609,2.2485018,112040.0,112030.0,0.01052081]
[1756107126835,2.4066218,112040.0,112030.0,0.01052081]
[1756107127067,2.2485018,112040.0,112030.0,0.01052081]
[1756107127299,2.4066218,112040.0,112030.0,0.01052081]
[1756107128217,2.2485018,112040.0,112030.0,0.01052081]
[1756107128442,2.4066218,112040.0,112030.0,0.01052081]
[1756107129141,2.41759994,112040.0,112030.0,0.01052081]
[1756107129428,2.44601759,112040.0,112030.0,0.00553081]
[1756107129652,2.44907759,112040.0,112030.0,0.00553081]
[1756107130890,2.28789759,112040.0,112030.0,0.00553081]
[1756107131111,2.25822994,112040.0,112030.0,0.01057081]
[1756107131332,2.32984029,112040.0,112030.0,0.01057081]
[1756107131986,2.32984029,112040.0,112030.0,0.00757081]
[1756107132429,2.32984029,112040.0,112030.0,0.00657081]
[1756107132660,2.41670994,112040.0,112030.0,0.00757081]
[1756107132924,2.43586775,112040.0,112030.0,0.00757081]
[1756107133140,2.43784775,112040.0,112030.0,0.00757081]
[1756107133360,2.43784775,112040.0,112030.0,0.00455081]
[1756107133586,2.44616617,112040.0,112030.0,0.00455081]
[1756107133808,2.44616617,112040.0,112030.0,0.00253081]
[1756107134033,2.44922617,112040.0,112030.0,0.00253081]
[1756107134533,2.4776561,112040.0,112030.0,0.00253081]
[1756107134778,2.46103149,112040.0,112030.0,0.00253081]
[1756107135004,2.47767841,112040.0,112030.0,0.00253081]
[1756107135461,2.47768138,112040.0,112030.0,0.00253081]
[1756107135908,2.47768715,112040.0,112030.0,0.00253081]
[1756107136564,2.4808735,112040.0,112030.0,0.00253081]
[1756107137056,2.47462715,112040.0,112030.0,0.00455081]
[1756107137284,2.49856472,112040.0,112030.0,0.00455081]
[1756107137495,2.49856472,112040.0,112030.0,0.00253081]
[1756107137722,2.4811157,112040.0,112030.0,0.00253081]
[1756107138206,2.4841757,112040.0,112030.0,0.00253081]
[1756107139391,2.50162472,112040.0,112030.0,0.00253081]
[1756107139623,2.4876556,112040.0,112030.0,0.00253081]
[1756107140075,2.47020658,112040.0,112030.0,0.00253081]
[1756107140356,0.5185236,112030.0,112020.0,0.00045]
[1756107140581,0.94899739,112030.0,112020.0,0.00045]
[1756107140809,1.54911551,112030.0,112020.0,0.00045]
[1756107141034,1.54407551,112030.0,112020.0,0.00549]
[1756107141267,1.42909593,112030.0,112020.0,0.00549]
[1756107141514,1.27053593,112030.0,112020.0,0.00549]
[1756107141996,0.83494224,112030.0,112020.0,0.10449]
[1756107142218,1.43200036,112030.0,112020.0,0.10449]
[1756107142456,0.66803201,112030.0,112020.0,0.10449]
[1756107142692,0.07097389,112030.0,112020.0,0.10249]
[1756107142934,0.04349139,112030.0,112020.0,0.10349]
[1756107143165,0.04349139,112030.0,112020.0,0.79066461]
[1756107143166,0.04024139,112030.0,112020.0,0.79066461]
[1756107143396,0.04024139,112030.0,112020.0,0.19137475]
[1756107143622,0.04024139,112030.0,112020.0,0.80588189]
[1756107144343,0.03637887,112030.0,112020.0,1.00588189]
[1756107144797,0.00048111,112040.0,112030.0,0.297]
[1756107144801,0.02730511,112040.0,112030.0,0.31444902]
[1756107145024,0.02730511,112040.0,112030.0,0.40637377]
[1756107145256,0.02730511,112040.0,112030.0,1.60049001]
[1756107145496,0.02730511,112040.0,112030.0,2.03458001]
[1756107145723,0.06868,112080.0,112070.0,0.11444902]
[1756107145724,0.00957256,112080.0,112070.0,0.11444902]
[1756107146014,0.07110163,112090.0,112080.0,0.11444902]
[1756107146245,0.07110163,112110.0,112100.0,0.097]
[1756107146498,0.23014163,112110.0,112100.0,0.18892475]
[1756107146725,0.09791563,112110.0,112100.0,0.18892475]
[1756107146960,0.25739563,112110.0,112100.0,0.18892475]
[1756107147193,0.026814,112110.0,112100.0,0.80343189]
[1756107147424,0.026814,112110.0,112100.0,0.78909382]
[1756107147657,0.026814,112110.0,112100.0,0.20637377]
[1756107149096,0.027814,112110.0,112100.0,0.21237377]
[1756107149349,0.028814,112110.0,112100.0,0.21737377]
[1756107150060,0.09991563,112110.0,112100.0,0.21737377]
[1756107151685,0.09991563,112110.0,112100.0,0.19992475]
[1756107151943,0.028814,112110.0,112100.0,0.19992475]
[1756107152868,0.028814,112110.0,112100.0,0.10292475]
[1756107153099,0.68263568,112110.0,112100.0,0.19690475]
[1756107153324,0.75127568,112110.0,112100.0,0.11002]
[1756107153792,0.75631568,112110.0,112100.0,0.108]
[1756107154013,0.93471189,112110.0,112100.0,0.011]
[1756107154695,0.75631568,112110.0,112100.0,0.108]
[1756107154955,0.93471189,112110.0,112100.0,0.108]
[1756107155894,0.9416317,112110.0,112070.0,0.00014555]
[1756107156126,0.17842933,112090.0,112070.0,0.0870303]
[1756107156349,0.15964,112080.0,112070.0,0.1840303]
[1756107156583,0.15964,112080.0,112070.0,0.09916555]
[1756107156819,0.188442,112080.0,112070.0,0.09916555]
[1756107157280,0.186462,112080.0,112070.0,0.09916555]
[1756107157549,0.186462,112080.0,112070.0,0.09714555]
[1756107157550,0.188442,112080.0,112070.0,0.09714555]
[1756107157794,0.34697165,112080.0,112070.0,0.09714555]
[1756107158016,0.9296917,112080.0,112070.0,0.09714555]
[1756107158250,1.10813566,112080.0,112070.0,0.09714555]
[1756107158491,0.34697165,112080.0,112070.0,0.10214555]
[1756107158711,0.258042,112080.0,112070.0,0.10416555]
[1756107159385,0.258042,112080.0,112070.0,0.09714555]
[1756107159386,0.43954596,112080.0,112070.0,0.09714555]
[1756107159634,1.02226601,112080.0,112070.0,0.09714555]
[1756107159865,1.11013566,112080.0,112070.0,0.10114555]
[1756107160348,0.52741561,112080.0,112070.0,0.10114555]
[1756107160572,1.45013566,112080.0,112070.0,0.10114555]
[1756107160795,1.53802041,112080.0,112070.0,0.10514555]
[1756107161503,1.53802041,112080.0,112070.0,0.00814555]
[1756107161732,1.55454425,112080.0,112070.0,0.00814555]
[1756107161954,1.58297418,112080.0,112070.0,0.00814555]
[1756107162649,1.58197418,112080.0,112070.0,0.00414555]
[1756107163082,0.17847581,112060.0,112050.0,0.097]
[1756107163309,0.78787814,112060.0,112050.0,0.097]
[1756107163538,0.59155475,112060.0,112050.0,0.09914]
[1756107163754,1.1742748,112060.0,112050.0,0.097]
[1756107163997,0.17847399,112070.0,112060.0,0.097]
[1756107163998,0.92576005,112070.0,112060.0,0.097]
[1756107164220,1.08431005,112070.0,112060.0,0.09914]
[1756107164440,1.1038882,112070.0,112060.0,0.097]
[1756107164660,1.08431005,112070.0,112060.0,0.09914]
[1756107164881,0.55484263,112070.0,112060.0,0.09814]
[1756107165099,1.31906259,112070.0,112060.0,0.096]
[1756107165355,1.1406027,112070.0,112060.0,0.096]
[1756107165573,1.18147164,112070.0,112060.0,0.096]